fUSD/lending_fUSD_20240409
["ID","MTS","AMOUNT","RATE_DAILY","PERIOD"]
[322026271,1712695841529,-574.94077105,0.00020999,2]
[322026272,1712695841539,-314.041005,0.00020999,2]
[322026273,1712695841548,-314.041005,0.00020999,2]
[322026274,1712695841558,-314.041005,0.00020999,2]
[322026275,1712695841568,-314.041005,0.00020999,2]
[322026276,1712695841578,-314.041005,0.00020999,3]
[322026277,1712695841588,-314.041005,0.00020999,3]
[322026278,1712695841597,-314.041005,0.00020999,3]
[322026279,1712695841608,-176.70792335,0.00020999,2]
[322026280,1712695841618,-456.67866346,0.00021,2]
[322026281,1712695841627,-5802812.96730852,0.00021,2]
[322026282,1712695841643,-358.33485164,0.00021,2]
[322026283,1712695841839,-296.19428827,0.000207,2]
[322026284,1712695841851,-296.19428827,0.000207,2]
[322026285,1712695841864,-296.19428827,0.000207,2]
[322026286,1712695841875,-296.19428827,0.000207,2]
[322026287,1712695841887,-99.14244928,0.000207,2]
[322026288,1712695841899,-197.05183899,0.000207,2]
[322026289,1712695841910,-209.63545152,0.000207,2]
[322026290,1712695841938,-86.55883675,0.000207,2]
[322026291,1712695841949,-296.19428827,0.000207,2]
[322026292,1712695841959,-296.19428827,0.000207,2]
[322026293,1712695841969,-296.19428827,0.000207,2]
[322026294,1712695841979,-296.19428827,0.000207,2]
[322026295,1712695841989,-171787.13150523,0.00021,2]
[322026296,1712695842001,-2729.35990473,0.00021,2]
[322026297,1712695842014,-7971.21384159,0.00021,2]
[322026299,1712695842531,-296.19428827,0.000207,2]
[322026300,1712695842541,-296.19428827,0.000207,2]
[322026301,1712695842550,-296.19428827,0.000207,2]
[322026302,1712695842559,-296.19428827,0.000207,2]
[322026303,1712695842568,-296.19428827,0.000207,2]
[322026304,1712695842578,-296.19428827,0.000207,2]
[322026305,1712695842588,-225.27678999,0.000207,2]
[322026306,1712695842647,-70.91749828,0.000207,2]
[322026307,1712695842657,-296.19428827,0.000207,2]
[322026308,1712695842667,-1000.0,0.000209,2]
[322026309,1712695842676,-1069094.34247218,0.00021,2]
[322026310,1712695842740,-1529.3957146,0.00021,2]
[322026333,1712695845704,-709504.2269649,0.00021,2]
[322026334,1712695845715,-116340.58009198,0.00021,2]
[322026335,1712695845725,-643069.96591787,0.00021,2]
[322026336,1712695845735,-481.0,0.00021,3]
[322026337,1712695845744,-394.0,0.00021,2]
[322026338,1712695845754,-714.86624918,0.00021,2]
[322026339,1712695845763,-296.25451302,0.00021,2]
[322026340,1712695845772,-831.14,0.00021,2]
[322026341,1712695845782,-155.0,0.00021,2]
[322026342,1712695845791,-307.17927733,0.00021,2]
[322026343,1712695845801,-155.6868564,0.00021,2]
[322026344,1712695845810,-1194.64,0.00021,2]
[322026345,1712695845819,-150.0,0.00021,2]
[322026346,1712695845829,-187.0,0.00021,3]
[322026347,1712695845839,-1034.3932,0.00021,2]
[322026348,1712695845848,-1300.0,0.00021,3]
[322026349,1712695845858,-500.0,0.00021052,2]
[322026350,1712695845867,-500.0,0.00021052,2]
[322026351,1712695845876,-500.0,0.00021052,2]
[322026352,1712695845885,-1425.56,0.00021052,2]
[322026353,1712695845895,-500.0,0.00021052,2]
[322026354,1712695845904,-599.82,0.00021052,2]
[322026355,1712695845913,-500.0,0.00021052,2]
[322026356,1712695845922,-500.0,0.00021052,2]
[322026357,1712695845931,-890.45,0.00021052,2]
[322026358,1712695845940,-500.0,0.00021052,2]
[322026359,1712695845949,-500.0,0.00021052,2]
[322026360,1712695845958,-500.0,0.00021052,2]
[322026361,1712695845967,-500.0,0.00021052,2]
[322026362,1712695845976,-1296.44,0.00021052,2]
[322026363,1712695845985,-500.0,0.00021052,2]
[322026364,1712695845994,-1175.82887659,0.00021059,2]
[322026365,1712695846004,-156.41485144,0.00021093,2]
[322026366,1712695846013,-201.67423787,0.00021093,2]
[322026368,1712695846023,-2528.95,0.00021094,2]
[322026371,1712695846034,-500.0,0.00021094,2]
[322026373,1712695846046,-500.0,0.00021094,2]
[322026375,1712695846056,-746.05,0.00021094,2]
[322026377,1712695846069,-613.41,0.00021095,2]
[322026379,1712695846078,-684.32,0.00021095,2]
[322026380,1712695846087,-2433.52,0.00021095,2]
[322026382,1712695846095,-500.0,0.00021095,2]
[322026385,1712695846107,-2027.77,0.00021095,2]
[322026387,1712695846119,-366.15,0.00021095,2]
[322026389,1712695846129,-1015.0,0.000211,2]
[322026391,1712695846140,-1145.80866043,0.00021108,4]
[322026393,1712695846152,-162.0,0.00021129,2]
[322026394,1712695846162,-1175.82887659,0.00021138,2]
[322026395,1712695846172,-1458.78,0.0002115,2]
[322026396,1712695846182,-500.0,0.0002115,2]
[322026397,1712695846191,-635.39,0.0002115,2]
[322026398,1712695846202,-500.0,0.0002115,2]
[322026399,1712695846212,-500.0,0.0002115,2]
[322026400,1712695846224,-500.0,0.0002115,2]
[322026401,1712695846235,-500.0,0.0002115,2]
[322026402,1712695846248,-539.48,0.0002115,2]
[322026403,1712695846259,-500.0,0.0002115,2]
[322026404,1712695846269,-704.24,0.0002115,2]
[322026405,1712695846279,-3092.81,0.0002115,2]
[322026406,1712695846292,-500.0,0.0002115,2]
[322026407,1712695846304,-500.0,0.00021151,2]
[322026408,1712695846314,-500.0,0.00021151,2]
[322026409,1712695846327,-500.0,0.00021151,2]
[322026410,1712695846339,-500.0,0.00021151,2]
[322026411,1712695846349,-500.0,0.00021151,2]
[322026412,1712695846359,-500.0,0.00021151,2]
[322026413,1712695846370,-976.18,0.00021151,2]
[322026414,1712695846380,-500.0,0.00021151,2]
[322026415,1712695846390,-500.0,0.00021151,2]
[322026416,1712695846399,-500.0,0.00021151,2]
[322026417,1712695846410,-500.0,0.00021151,2]
[322026418,1712695846421,-705.31,0.00021151,2]
[322026419,1712695846433,-350.31580682,0.00021151,2]
[322026420,1712695846442,-626.04,0.00021151,2]
[322026421,1712695846453,-584.0,0.00021151,2]
[322026422,1712695846464,-500.0,0.00021151,2]
[322026423,1712695846473,-11236.61976296,0.00021153,2]
[322026424,1712695846484,-299.52,0.000212,2]
[322026425,1712695846494,-1175.82887659,0.00021218,2]
[322026426,1712695846506,-254.57220545,0.00021224,2]
[322026427,1712695846517,-1034.39321,0.0002123,2]
[322026428,1712695846528,-1175.82887659,0.00021297,2]
[322026429,1712695846538,-250000.0,0.000213,2]
[322026430,1712695846551,-1145.80866043,0.00021316,4]
[322026431,1712695846562,-500.0,0.00021326,2]
[322026432,1712695846572,-500.0,0.00021326,2]
[322026433,1712695846583,-500.0,0.00021326,2]
[322026434,1712695846593,-1425.56,0.00021326,2]
[322026435,1712695846604,-500.0,0.00021326,2]
[322026436,1712695846614,-599.82,0.00021326,2]
[322026437,1712695846624,-500.0,0.00021326,2]
[322026438,1712695846634,-500.0,0.00021326,2]
[322026439,1712695846644,-890.45,0.00021326,2]
[322026440,1712695846653,-500.0,0.00021326,2]
[322026441,1712695846664,-500.0,0.00021326,2]
[322026442,1712695846673,-500.0,0.00021326,2]
[322026443,1712695846683,-500.0,0.00021326,2]
[322026444,1712695846693,-1296.44,0.00021326,2]
[322026445,1712695846703,-500.0,0.00021326,2]
[322026446,1712695846713,-6185.17070435,0.0002133,2]
[322026447,1712695846723,-3901.12711582,0.0002133,2]
[322026448,1712695846733,-2183.58197056,0.00021337,2]
[322026449,1712695846743,-155.92411504,0.00021368,2]
[322026450,1712695846753,-2528.95,0.00021368,2]
[322026451,1712695846763,-500.0,0.00021368,2]
[322026452,1712695846772,-500.0,0.00021368,2]
[322026453,1712695846782,-746.05,0.00021368,2]
[322026454,1712695846792,-613.41,0.00021369,2]
[322026455,1712695846802,-684.32,0.00021369,2]
[322026456,1712695846811,-2433.52,0.00021369,2]
[322026457,1712695846821,-500.0,0.00021369,2]
[322026458,1712695846831,-2027.77,0.00021369,2]
[322026459,1712695846842,-1431.67,0.0002137,2]
[322026460,1712695846853,-1175.82887659,0.00021377,2]
[322026461,1712695846862,-300.0,0.000214,2]
[322026462,1712695846871,-1458.78,0.00021424,2]
[322026463,1712695846881,-500.0,0.00021424,2]
[322026464,1712695846891,-635.39,0.00021424,2]
[322026465,1712695846900,-500.0,0.00021424,2]
[322026466,1712695846910,-500.0,0.00021424,2]
[322026467,1712695846920,-500.0,0.00021424,2]
[322026468,1712695846930,-500.0,0.00021424,2]
[322026469,1712695846939,-539.48,0.00021424,2]
[322026470,1712695846949,-500.0,0.00021424,2]
[322026471,1712695846959,-704.24,0.00021424,2]
[322026472,1712695846970,-3092.81,0.00021424,2]
[322026473,1712695846980,-500.0,0.00021424,2]
[322026474,1712695846990,-253.24406078,0.00021425,2]
[322026475,1712695846999,-500.0,0.00021425,2]
[322026476,1712695847009,-500.0,0.00021425,2]
[322026477,1712695847019,-500.0,0.00021425,2]
[322026478,1712695847029,-500.0,0.00021425,2]
[322026479,1712695847039,-500.0,0.00021425,2]
[322026480,1712695847048,-976.18,0.00021425,2]
[322026481,1712695847058,-500.0,0.00021425,2]
[322026482,1712695847071,-500.0,0.00021425,2]
[322026483,1712695847082,-500.0,0.00021425,2]
[322026484,1712695847092,-500.0,0.00021425,2]
[322026485,1712695847101,-705.31,0.00021425,2]
[322026486,1712695847112,-626.04,0.00021425,2]
[322026487,1712695847122,-584.0,0.00021425,2]
[322026488,1712695847133,-500.0,0.00021425,2]
[322026489,1712695847143,-1175.82887659,0.00021456,2]
[322026490,1712695847155,-11236.61976296,0.00021463,2]
[322026491,1712695847165,-254.57220545,0.00021478,2]
[322026492,1712695847177,-500.0,0.000215,2]
[322026493,1712695847188,-150.0,0.000215,2]
[322026494,1712695847198,-175.0,0.000215,4]
[322026495,1712695847209,-870.4,0.00021516,2]
[322026496,1712695847218,-1145.80866043,0.00021524,4]
[322026497,1712695847228,-1175.82887659,0.00021536,2]
[322026498,1712695847238,-1034.39321,0.0002155,2]
[322026499,1712695847248,-500.0,0.000216,2]
[322026500,1712695847259,-500.0,0.000216,2]
[322026501,1712695847270,-500.0,0.000216,2]
[322026502,1712695847279,-1425.56,0.000216,2]
[322026503,1712695847290,-500.0,0.000216,2]
[322026504,1712695847467,-599.82,0.000216,2]
[322026505,1712695847478,-500.0,0.000216,2]
[322026506,1712695847488,-500.0,0.000216,2]
[322026507,1712695847499,-890.45,0.000216,2]
[322026508,1712695847510,-500.0,0.000216,2]
[322026509,1712695847522,-500.0,0.000216,2]
[322026510,1712695847532,-500.0,0.000216,2]
[322026511,1712695847542,-500.0,0.000216,2]
[322026512,1712695847553,-1296.44,0.000216,2]
[322026513,1712695847565,-500.0,0.000216,2]
[322026514,1712695847575,-1175.82887659,0.00021615,2]
[322026515,1712695847586,-2528.95,0.00021642,2]
[322026516,1712695847595,-500.0,0.00021642,2]
[322026517,1712695847604,-500.0,0.00021642,2]
[322026518,1712695847613,-746.05,0.00021642,2]
[322026519,1712695847622,-613.41,0.00021643,2]
[322026520,1712695847631,-684.32,0.00021643,2]
[322026521,1712695847640,-2433.52,0.00021643,2]
[322026522,1712695847651,-500.0,0.00021643,2]
[322026523,1712695847661,-2027.77,0.00021643,2]
[322026524,1712695847671,-2967.87878512,0.00021672,2]
[322026525,1712695847680,-1175.82887659,0.00021695,2]
[322026526,1712695847689,-1458.78,0.00021698,2]
[322026527,1712695847698,-583.4751774,0.00021698,2]
[322026528,1712695847707,-635.39,0.00021698,2]
[322026529,1712695847717,-500.0,0.00021698,2]
[322026530,1712695847727,-500.0,0.00021698,2]
[322026531,1712695847736,-500.0,0.00021698,2]
[322026532,1712695847746,-500.0,0.00021698,2]
[322026533,1712695847755,-539.48,0.00021698,2]
[322026534,1712695847764,-500.0,0.00021698,2]
[322026535,1712695847774,-704.24,0.00021698,2]
[322026536,1712695847784,-3092.81,0.00021698,2]
[322026537,1712695847794,-500.0,0.00021698,2]
[322026538,1712695847804,-500.0,0.00021699,2]
[322026539,1712695847814,-500.0,0.00021699,2]
[322026540,1712695847824,-647.36136679,0.00021699,2]
[322026541,1712695847834,-179.8453987,0.00021699,2]
[322026542,1712695847845,-500.0,0.00021699,2]
[322026543,1712695847855,-976.18,0.00021699,2]
[322026544,1712695847866,-500.0,0.00021699,2]
[322026545,1712695847876,-500.0,0.00021699,2]
[322026546,1712695847887,-500.0,0.00021699,2]
[322026547,1712695847897,-500.0,0.00021699,2]
[322026548,1712695847907,-705.31,0.00021699,2]
[322026549,1712695847918,-626.04,0.00021699,2]
[322026550,1712695847928,-584.0,0.00021699,2]
[322026551,1712695847938,-500.0,0.00021699,2]
[322026552,1712695847949,-254.57220545,0.00021732,2]
[322026553,1712695847958,-1145.80866043,0.00021732,5]
[322026554,1712695847968,-978.0,0.00021753,2]
[322026555,1712695847978,-6185.17070435,0.0002176,2]
[322026556,1712695847989,-3901.12711582,0.0002176,2]
[322026557,1712695848000,-11236.61976296,0.00021774,2]
[322026558,1712695848010,-2183.58197056,0.00021774,2]
[322026559,1712695848021,-1175.82887659,0.00021774,2]
[322026560,1712695848031,-24814.62665881,0.0002178,2]
[322026561,1712695848042,-24814.62665881,0.0002178,2]
[322026562,1712695848053,-24814.62665881,0.0002178,2]
[322026563,1712695848063,-24814.62665881,0.0002178,2]
[322026564,1712695848078,-24814.62665881,0.0002178,2]
[322026565,1712695848089,-24814.62665881,0.0002178,2]
[322026566,1712695848099,-24814.62665881,0.0002178,2]
[322026567,1712695848109,-24814.62665881,0.0002178,2]
[322026568,1712695848119,-24814.62665881,0.0002178,2]
[322026569,1712695848129,-24814.62565881,0.0002178,2]
[322026570,1712695848138,-544.0,0.0002178,2]
[322026571,1712695848148,-533.0,0.0002178,2]
[322026572,1712695848158,-1380.24,0.000218,2]
[322026573,1712695848167,-1001149.95356779,0.00021831,2]
[322026574,1712695848176,-12021863.18023183,0.00021832,2]
[322026575,1712695848185,-1034.39321,0.0002186,2]
[322026576,1712695848194,-500.0,0.00021874,2]
[322026577,1712695848204,-500.0,0.00021874,2]
[322026578,1712695848214,-500.0,0.00021874,2]
[322026579,1712695848223,-1425.56,0.00021874,2]
[322026580,1712695848233,-500.0,0.00021874,2]
[322026581,1712695848242,-599.82,0.00021874,2]
[322026582,1712695848252,-500.0,0.00021874,2]
[322026583,1712695848261,-500.0,0.00021874,2]
[322026584,1712695848270,-890.45,0.00021874,2]
[322026585,1712695848279,-500.0,0.00021874,2]
[322026586,1712695848289,-500.0,0.00021874,2]
[322026587,1712695848298,-500.0,0.00021874,2]
[322026588,1712695848307,-500.0,0.00021874,2]
[322026589,1712695848316,-1296.44,0.00021874,2]
[322026590,1712695848325,-500.0,0.00021874,2]
[322026591,1712695848334,-565849.0985342,0.000219,2]
[322026592,1712695848344,-1166.54950802,0.000219,2]
[322026593,1712695848353,-424.61356249,0.000219,2]
[322026594,1712695848362,-2528.95,0.00021916,2]
[322026595,1712695848372,-500.0,0.00021916,2]
[322026596,1712695848381,-500.0,0.00021916,2]
[322026597,1712695848391,-746.05,0.00021916,2]
[322026598,1712695848400,-613.41,0.00021917,2]
[322026599,1712695848409,-684.32,0.00021917,2]
[322026600,1712695848418,-2433.52,0.00021917,2]
[322026601,1712695848427,-500.0,0.00021917,2]
[322026602,1712695848436,-2027.77,0.00021917,2]
[322026603,1712695848446,-250.0,0.00021918,2]
[322026604,1712695848456,-250.0,0.00021918,2]
[322026605,1712695848465,-624.21,0.00021918,2]
[322026606,1712695848474,-150.0,0.00021918,2]
[322026607,1712695848483,-150.0,0.00021918,2]
[322026608,1712695848492,-1458.78,0.00021972,2]
[322026609,1712695848504,-635.39,0.00021972,2]
[322026610,1712695848514,-500.0,0.00021972,2]
[322026611,1712695848525,-500.0,0.00021972,2]
[322026612,1712695848535,-500.0,0.00021972,2]
[322026613,1712695848546,-500.0,0.00021972,2]
[322026614,1712695848556,-539.48,0.00021972,2]
[322026615,1712695848566,-500.0,0.00021972,2]
[322026616,1712695848578,-704.24,0.00021972,2]
[322026617,1712695848588,-3092.81,0.00021972,2]
[322026618,1712695848600,-500.0,0.00021972,2]
[322026619,1712695848611,-500.0,0.00021973,2]
[322026620,1712695848622,-500.0,0.00021973,2]
[322026621,1712695848634,-500.0,0.00021973,2]
[322026622,1712695848644,-976.18,0.00021973,2]
[322026623,1712695848655,-500.0,0.00021973,2]
[322026624,1712695848666,-249.77502096,0.00021973,2]
[322026625,1712695848676,-500.0,0.00021973,2]
[322026626,1712695848685,-500.0,0.00021973,2]
[322026627,1712695848696,-705.31,0.00021973,2]
[322026628,1712695848708,-626.04,0.00021973,2]
[322026629,1712695848718,-584.0,0.00021973,2]
[322026630,1712695848730,-370.0,0.00021973,2]
[322026631,1712695848743,-642.49932414,0.00022,2]
[322026632,1712695848753,-785.77066076,0.00022,2]
[322026633,1712695848763,-1455.0,0.00022,2]
[322026634,1712695848774,-367453.84521627,0.00022,2]
[322026635,1712695848784,-500.0,0.00022,2]
[322026636,1712695848795,-150.0,0.00022,2]
[322026637,1712695848805,-831.14,0.000221,2]
[322026638,1712695848816,-1194.64,0.000221,2]
[322026639,1712695848826,-328.352,0.00022136,2]
[322026640,1712695848836,-500.0,0.00022148,2]
[322026641,1712695848846,-500.0,0.00022148,2]
[322026642,1712695848856,-500.0,0.00022148,2]
[322026643,1712695848866,-1425.56,0.00022148,2]
[322026644,1712695848876,-500.0,0.00022148,2]
[322026645,1712695848887,-599.82,0.00022148,2]
[322026646,1712695848897,-500.0,0.00022148,2]
[322026647,1712695848907,-500.0,0.00022148,2]
[322026648,1712695848918,-890.45,0.00022148,2]
[322026649,1712695848928,-500.0,0.00022148,2]
[322026650,1712695848939,-500.0,0.00022148,2]
[322026651,1712695848950,-500.0,0.00022148,2]
[322026652,1712695848961,-500.0,0.00022148,2]
[322026653,1712695848972,-1296.44,0.00022148,2]
[322026654,1712695848982,-500.0,0.00022148,2]
[322026655,1712695848992,-1034.39321,0.0002217,2]
[322026656,1712695849003,-2528.95,0.0002219,2]
[322026657,1712695849013,-500.0,0.0002219,2]
[322026658,1712695849023,-500.0,0.0002219,2]
[322026659,1712695849033,-746.05,0.0002219,2]
[322026660,1712695849042,-613.41,0.00022191,2]
[322026661,1712695849051,-684.32,0.00022191,2]
[322026662,1712695849062,-2433.52,0.00022191,2]
[322026663,1712695849073,-500.0,0.00022191,2]
[322026664,1712695849084,-2027.77,0.00022191,2]
[322026665,1712695849094,-300.22851208,0.000222,5]
[322026666,1712695849103,-328.352,0.00022237,2]
[322026667,1712695849114,-1458.78,0.00022246,2]
[322026668,1712695849124,-635.39,0.00022246,2]
[322026669,1712695849135,-500.0,0.00022246,2]
[322026670,1712695849146,-500.0,0.00022246,2]
[322026671,1712695849157,-500.0,0.00022246,2]
[322026672,1712695849167,-500.0,0.00022246,2]
[322026673,1712695849177,-539.48,0.00022246,2]
[322026674,1712695849187,-500.0,0.00022246,2]
[322026675,1712695849197,-704.24,0.00022246,2]
[322026676,1712695849206,-3092.81,0.00022246,2]
[322026677,1712695849217,-646.5,0.00022246,2]
[322026678,1712695849227,-500.0,0.00022247,2]
[322026679,1712695849240,-500.0,0.00022247,2]
[322026680,1712695849250,-500.0,0.00022247,2]
[322026681,1712695849259,-976.18,0.00022247,2]
[322026682,1712695849270,-500.0,0.00022247,2]
[322026683,1712695849281,-500.0,0.00022247,2]
[322026684,1712695849291,-505.31307217,0.00022247,2]
[322026685,1712695849301,-705.31,0.00022247,2]
[322026686,1712695849312,-626.04,0.00022247,2]
[322026687,1712695849321,-584.0,0.00022247,2]
[322026688,1712695849331,-328.352,0.00022337,2]
[322026689,1712695849340,-627.48678385,0.0002241,2]
[322026690,1712695849349,-500.0,0.00022422,2]
[322026691,1712695849359,-500.0,0.00022422,2]
[322026692,1712695849370,-500.0,0.00022422,2]
[322026693,1712695849379,-1425.56,0.00022422,2]
[322026694,1712695849390,-559.74364143,0.00022422,2]
[322026695,1712695849400,-599.82,0.00022422,2]
[322026696,1712695849411,-500.0,0.00022422,2]
[322026697,1712695849421,-500.0,0.00022422,2]
[322026698,1712695849432,-890.45,0.00022422,2]
[322026699,1712695849443,-500.0,0.00022422,2]
[322026700,1712695849453,-500.0,0.00022422,2]
[322026701,1712695849463,-500.0,0.00022422,2]
[322026702,1712695849475,-500.0,0.00022422,2]
[322026703,1712695849485,-1296.44,0.00022422,2]
[322026704,1712695849495,-195.08721028,0.00022422,2]
[322026705,1712695849507,-152.0,0.00022438,3]
[322026706,1712695849516,-328.352,0.00022439,2]
[322026707,1712695849526,-2528.95,0.00022464,2]
[322026708,1712695849537,-500.0,0.00022464,2]
[322026709,1712695849547,-500.0,0.00022464,2]
[322026710,1712695849557,-746.05,0.00022464,2]
[322026711,1712695849567,-613.41,0.00022465,2]
[322026712,1712695849577,-684.32,0.00022465,2]
[322026713,1712695849588,-2433.52,0.00022465,2]
[322026714,1712695849598,-500.0,0.00022465,2]
[322026715,1712695849607,-2027.77,0.00022465,2]
[322026716,1712695849618,-153.40766547,0.00022476,2]
[322026717,1712695849628,-891.26346142,0.000225,2]
[322026718,1712695849638,-500.0,0.000225,2]
[322026719,1712695849649,-788.0,0.000225,2]
[322026720,1712695849660,-962.0,0.000225,5]
[322026721,1712695849670,-962.0,0.000225,5]
[322026722,1712695849680,-150.0,0.000225,2]
[322026723,1712695849691,-200.0,0.000225,5]
[322026724,1712695849700,-201.0,0.000225,5]
[322026725,1712695849710,-1458.78,0.0002252,2]
[322026726,1712695849721,-635.39,0.0002252,2]
[322026727,1712695849731,-500.0,0.0002252,2]
[322026728,1712695849741,-500.0,0.0002252,2]
[322026729,1712695849751,-500.0,0.0002252,2]
[322026730,1712695849761,-500.0,0.0002252,2]
[322026731,1712695849771,-539.48,0.0002252,2]
[322026732,1712695849781,-500.0,0.0002252,2]
[322026733,1712695849791,-704.24,0.0002252,2]
[322026734,1712695849802,-3092.81,0.0002252,2]
[322026735,1712695849813,-500.0,0.00022521,2]
[322026736,1712695849823,-500.0,0.00022521,2]
[322026737,1712695849834,-500.0,0.00022521,2]
[322026738,1712695849844,-976.18,0.00022521,2]
[322026739,1712695849922,-500.0,0.00022521,2]
[322026740,1712695849933,-500.0,0.00022521,2]
[322026741,1712695849944,-705.31,0.00022521,2]
[322026742,1712695849953,-626.04,0.00022521,2]
[322026743,1712695849964,-584.0,0.00022521,2]
[322026744,1712695849974,-328.352,0.00022542,2]
[322026745,1712695849985,-150.0,0.00022609,2]
[322026746,1712695849995,-328.352,0.00022646,2]
[322026747,1712695850005,-500.0,0.00022696,2]
[322026748,1712695850015,-500.0,0.00022696,2]
[322026749,1712695850025,-500.0,0.00022696,2]
[322026750,1712695850035,-1425.56,0.00022696,2]
[322026751,1712695850045,-599.82,0.00022696,2]
[322026752,1712695850056,-500.0,0.00022696,2]
[322026753,1712695850067,-500.0,0.00022696,2]
[322026754,1712695850078,-890.45,0.00022696,2]
[322026755,1712695850088,-500.0,0.00022696,2]
[322026756,1712695850098,-500.0,0.00022696,2]
[322026757,1712695850107,-500.0,0.00022696,2]
[322026758,1712695850118,-500.0,0.00022696,2]
[322026759,1712695850128,-1296.44,0.00022696,2]
[322026760,1712695850138,-158.7931734,0.00022713,2]
[322026761,1712695850148,-153.70464839,0.00022718,2]
[322026762,1712695850158,-46239.2778738,0.00022738,2]
[322026763,1712695850167,-2528.95,0.00022738,2]
[322026764,1712695850177,-500.0,0.00022738,2]
[322026765,1712695850187,-500.0,0.00022738,2]
[322026766,1712695850196,-746.05,0.00022738,2]
[322026767,1712695850205,-613.41,0.00022739,2]
[322026768,1712695850214,-684.32,0.00022739,2]
[322026769,1712695850224,-2433.52,0.00022739,2]
[322026770,1712695850234,-500.0,0.00022739,2]
[322026771,1712695850243,-2027.77,0.00022739,2]
[322026772,1712695850252,-157.86201344,0.00022742,2]
[322026773,1712695850261,-328.352,0.00022751,2]
[322026774,1712695850270,-158.7931734,0.00022759,2]
[322026775,1712695850279,-153.83304041,0.00022761,2]
[322026776,1712695850288,-157.86201344,0.00022765,2]
[322026777,1712695850297,-914.32635425,0.00022766,2]
[322026778,1712695850306,-158.7931734,0.00022785,2]
[322026779,1712695850315,-1458.78,0.00022794,2]
[322026780,1712695850324,-635.39,0.00022794,2]
[322026781,1712695850338,-500.0,0.00022794,2]
[322026782,1712695850347,-500.0,0.00022794,2]
[322026783,1712695850356,-500.0,0.00022794,2]
[322026784,1712695850366,-500.0,0.00022794,2]
[322026785,1712695850375,-539.48,0.00022794,2]
[322026786,1712695850384,-398.08011515,0.00022794,2]
[322026787,1712695850393,-704.24,0.00022794,2]
[322026788,1712695850402,-3092.81,0.00022794,2]
[322026789,1712695850411,-500.0,0.00022795,2]
[322026790,1712695850420,-172.20065709,0.00022795,2]
[322026791,1712695850430,-500.0,0.00022795,2]
[322026792,1712695850439,-976.18,0.00022795,2]
[322026793,1712695850448,-500.0,0.00022795,2]
[322026794,1712695850457,-500.0,0.00022795,2]
[322026795,1712695850467,-705.31,0.00022795,2]
[322026796,1712695850476,-626.04,0.00022795,2]
[322026797,1712695850485,-584.0,0.00022795,2]
[322026798,1712695850496,-914.32635425,0.00022803,2]
[322026799,1712695850515,-163.49288601,0.00022835,2]
[322026800,1712695850525,-341.69192811,0.00022852,2]
[322026801,1712695850535,-328.352,0.00022856,2]
[322026802,1712695850546,-158.7931734,0.00022953,2]
[322026803,1712695850556,-267.25,0.00022961,2]
[322026804,1712695850567,-328.352,0.00022963,2]
[322026805,1712695850577,-152.0,0.00022964,4]
[322026806,1712695850587,-500.0,0.0002297,2]
[322026807,1712695850597,-500.0,0.0002297,2]